fUST/lending_fUST_20260605
["ID","MTS","AMOUNT","RATE_DAILY","PERIOD"]
[424161479,1780619447000,-500.0,0.0001452,2]
[424161475,1780619447000,-2330.89,0.0001452,2]
[424161477,1780619447000,-500.0,0.0001452,2]
[424161474,1780619447000,-830.48,0.0001452,2]
[424161478,1780619447000,-500.0,0.0001452,2]
[424161473,1780619447000,-12041.34,0.0001452,2]
[424161415,1780619447000,-500.0,0.00014246,2]
[424161451,1780619447000,-500.0,0.0001452,2]
[424161452,1780619447000,-500.0,0.0001452,2]
[424161476,1780619447000,-500.0,0.0001452,2]
[424161448,1780619447000,-500.0,0.0001452,2]
[424161427,1780619447000,-500.0,0.0001452,2]
[424161428,1780619447000,-500.0,0.0001452,2]
[424161418,1780619447000,-562.5,0.00014246,2]
[424161419,1780619447000,-500.0,0.00014246,2]
[424161417,1780619447000,-500.0,0.00014246,2]
[424161421,1780619447000,-500.0,0.00014246,2]
[424161422,1780619447000,-500.0,0.00014246,2]
[424161423,1780619447000,-500.0,0.00014246,2]
[424161455,1780619447000,-500.0,0.0001452,2]
[424161424,1780619447000,-500.0,0.00014246,2]
[424161429,1780619447000,-500.0,0.0001452,2]
[424161435,1780619447000,-500.0,0.0001452,2]
[424161440,1780619447000,-200.82757535,0.0001452,2]
[424161436,1780619447000,-500.0,0.0001452,2]
[424161431,1780619447000,-500.0,0.0001452,2]
[424161420,1780619447000,-500.0,0.00014246,2]
[424161433,1780619447000,-500.0,0.0001452,2]
[424161434,1780619447000,-500.0,0.0001452,2]
[424161445,1780619447000,-500.0,0.0001452,2]
[424161444,1780619447000,-1003.63,0.0001452,2]
[424161454,1780619447000,-500.0,0.0001452,2]
[424161443,1780619447000,-500.0,0.0001452,2]
[424161437,1780619447000,-500.0,0.0001452,2]
[424161447,1780619447000,-500.0,0.0001452,2]
[424161438,1780619447000,-500.0,0.0001452,2]
[424161442,1780619447000,-500.0,0.0001452,2]
[424161441,1780619447000,-500.0,0.0001452,2]
[424161430,1780619447000,-500.0,0.0001452,2]
[424161432,1780619447000,-500.0,0.0001452,2]
[424161439,1780619447000,-500.0,0.0001452,2]
[424161446,1780619447000,-500.0,0.0001452,2]
[424161524,1780619448000,-500.0,0.00014794,2]
[424161529,1780619448000,-500.0,0.00014794,2]
[424161530,1780619448000,-500.0,0.00014794,2]
[424161526,1780619448000,-500.0,0.00014794,2]
[424161525,1780619448000,-500.0,0.00014794,2]
[424161516,1780619448000,-500.0,0.0001452,2]
[424161523,1780619448000,-500.0,0.00014794,2]
[424161522,1780619448000,-500.0,0.00014794,2]
[424161520,1780619448000,-1516.12094999,0.00014674,2]
[424161511,1780619448000,-500.0,0.0001452,2]
[424161517,1780619448000,-500.0,0.0001452,2]
[424161527,1780619448000,-500.0,0.00014794,2]
[424161528,1780619448000,-500.0,0.00014794,2]
[424161540,1780619448000,-500.0,0.00014794,2]
[424161533,1780619448000,-500.0,0.00014794,2]
[424161521,1780619448000,-500.0,0.00014794,2]
[424161531,1780619448000,-500.0,0.00014794,2]
[424161535,1780619448000,-500.0,0.00014794,2]
[424161545,1780619448000,-500.0,0.00014794,2]
[424161544,1780619448000,-500.0,0.00014794,2]
[424161543,1780619448000,-500.0,0.00014794,2]
[424161546,1780619448000,-500.0,0.00014794,2]
[424161537,1780619448000,-500.0,0.00014794,2]
[424161541,1780619448000,-500.0,0.00014794,2]
[424161534,1780619448000,-1003.63,0.00014794,2]
[424161538,1780619448000,-500.0,0.00014794,2]
[424161536,1780619448000,-500.0,0.00014794,2]
[424161518,1780619448000,-500.0,0.0001452,2]
[424161532,1780619448000,-500.0,0.00014794,2]
[424161513,1780619448000,-562.5,0.0001452,2]
[424161509,1780619448000,-500.0,0.0001452,2]
[424161512,1780619448000,-500.0,0.0001452,2]
[424161539,1780619448000,-291.51432087,0.00014794,2]
[424161483,1780619448000,-500.0,0.0001452,2]
[424161484,1780619448000,-503.1,0.0001452,2]
[424161495,1780619448000,-500.0,0.0001452,2]
[424161488,1780619448000,-500.0,0.0001452,2]
[424161487,1780619448000,-500.0,0.0001452,2]
[424161486,1780619448000,-446.55660578,0.0001452,2]
[424161494,1780619448000,-542.42,0.0001452,2]
[424161485,1780619448000,-500.0,0.0001452,2]
[424161493,1780619448000,-500.0,0.0001452,2]
[424161491,1780619448000,-500.0,0.0001452,2]
[424161492,1780619448000,-500.0,0.0001452,2]
[424161489,1780619448000,-500.0,0.0001452,2]
[424161497,1780619448000,-536.67,0.0001452,2]
[424161506,1780619448000,-500.0,0.0001452,2]
[424161496,1780619448000,-500.0,0.0001452,2]
[424161507,1780619448000,-555.85,0.0001452,2]
[424161508,1780619448000,-500.0,0.0001452,2]
[424161498,1780619448000,-500.0,0.0001452,2]
[424161502,1780619448000,-500.0,0.0001452,2]
[424161505,1780619448000,-500.0,0.0001452,2]
[424161499,1780619448000,-500.0,0.0001452,2]
[424161501,1780619448000,-500.0,0.0001452,2]
[424161500,1780619448000,-500.0,0.0001452,2]
[424161504,1780619448000,-1079.98,0.0001452,2]
[424161503,1780619448000,-771.92,0.0001452,2]
[424161510,1780619448000,-500.0,0.0001452,2]
[424161515,1780619448000,-500.0,0.0001452,2]
[424161519,1780619448000,-501.56126943,0.0001452,2]
[424161514,1780619448000,-500.0,0.0001452,2]
[424161542,1780619448000,-500.0,0.00014794,2]
[424161490,1780619448000,-500.0,0.0001452,2]
[424161549,1780619448000,-500.0,0.00014794,2]
[424161578,1780619448000,-382.24,0.00014794,2]
[424161582,1780619448000,-152.14308002,0.00014794,2]
[424161580,1780619448000,-500.0,0.00014794,2]
[424161579,1780619448000,-500.0,0.00014794,2]
[424161586,1780619448000,-500.0,0.00014794,2]
[424161587,1780619448000,-500.0,0.00014794,2]
[424161597,1780619448000,-500.0,0.00014794,2]
[424161593,1780619448000,-555.85,0.00014794,2]
[424161591,1780619448000,-500.0,0.00014794,2]
[424161594,1780619448000,-500.0,0.00014794,2]
[424161592,1780619448000,-585.76,0.00014794,2]
[424161590,1780619448000,-1079.98,0.00014794,2]
[424161596,1780619448000,-500.0,0.00014794,2]
[424161588,1780619448000,-500.0,0.00014794,2]
[424161595,1780619448000,-500.0,0.00014794,2]
[424161598,1780619448000,-500.0,0.00014794,2]
[424161600,1780619448000,-500.0,0.00014794,2]
[424161601,1780619448000,-500.0,0.00014794,2]
[424161602,1780619448000,-500.0,0.00014794,2]
[424161606,1780619448000,-470.63315294,0.00014992,2]
[424161609,1780619448000,-500.0,0.00015068,2]
[424161608,1780619448000,-1015.17301033,0.00015,7]
[424161599,1780619448000,-562.5,0.00014794,2]
[424161603,1780619448000,-500.0,0.00014794,2]
[424161610,1780619448000,-500.0,0.00015068,2]
[424161605,1780619448000,-603.62427732,0.000149,2]
[424161607,1780619448000,-8021.33976964,0.00015,2]
[424161604,1780619448000,-500.0,0.00014794,2]
[424161547,1780619448000,-500.0,0.00014794,2]
[424161581,1780619448000,-542.42,0.00014794,2]
[424161577,1780619448000,-500.0,0.00014794,2]
[424161589,1780619448000,-771.92,0.00014794,2]
[424161585,1780619448000,-500.0,0.00014794,2]
[424161551,1780619448000,-500.0,0.00014794,2]
[424161583,1780619448000,-500.0,0.00014794,2]
[424161550,1780619448000,-500.0,0.00014794,2]
[424161553,1780619448000,-500.0,0.00014794,2]
[424161555,1780619448000,-500.0,0.00014794,2]
[424161556,1780619448000,-500.0,0.00014794,2]
[424161552,1780619448000,-500.0,0.00014794,2]
[424161557,1780619448000,-500.0,0.00014794,2]
[424161554,1780619448000,-500.0,0.00014794,2]
[424161558,1780619448000,-500.0,0.00014794,2]
[424161560,1780619448000,-500.0,0.00014794,2]
[424161566,1780619448000,-172.36657537,0.00014794,2]
[424161559,1780619448000,-500.0,0.00014794,2]
[424161561,1780619448000,-500.0,0.00014794,2]
[424161569,1780619448000,-500.0,0.00014794,2]
[424161548,1780619448000,-644.03,0.00014794,2]
[424161567,1780619448000,-500.0,0.00014794,2]
[424161574,1780619448000,-500.0,0.00014794,2]
[424161563,1780619448000,-830.48,0.00014794,2]
[424161573,1780619448000,-500.0,0.00014794,2]
[424161584,1780619448000,-536.67,0.00014794,2]
[424161576,1780619448000,-500.0,0.00014794,2]
[424161572,1780619448000,-503.1,0.00014794,2]
[424161565,1780619448000,-500.0,0.00014794,2]
[424161575,1780619448000,-500.0,0.00014794,2]
[424161570,1780619448000,-500.0,0.00014794,2]
[424161571,1780619448000,-500.0,0.00014794,2]
[424161568,1780619448000,-500.0,0.00014794,2]
[424161562,1780619448000,-12041.34,0.00014794,2]
[424161564,1780619448000,-2330.89,0.00014794,2]
[424161651,1780619449000,-500.0,0.00015068,2]
[424161653,1780619449000,-500.0,0.00015068,2]
[424161654,1780619449000,-500.0,0.00015068,2]
[424161652,1780619449000,-500.0,0.00015068,2]
[424161661,1780619449000,-500.0,0.00015068,2]
[424161660,1780619449000,-500.0,0.00015068,2]
[424161650,1780619449000,-500.0,0.00015068,2]
[424161646,1780619449000,-12041.34,0.00015068,2]
[424161647,1780619449000,-830.48,0.00015068,2]
[424161645,1780619449000,-500.0,0.00015068,2]
[424161648,1780619449000,-2330.89,0.00015068,2]
[424161659,1780619449000,-500.0,0.00015068,2]
[424161649,1780619449000,-500.0,0.00015068,2]
[424161657,1780619449000,-500.0,0.00015068,2]
[424161672,1780619449000,-500.0,0.00015068,2]
[424161658,1780619449000,-500.0,0.00015068,2]
[424161655,1780619449000,-503.1,0.00015068,2]
[424161662,1780619449000,-500.0,0.00015068,2]
[424161664,1780619449000,-500.0,0.00015068,2]
[424161669,1780619449000,-500.0,0.00015068,2]
[424161670,1780619449000,-771.92,0.00015068,2]
[424161674,1780619449000,-500.0,0.00015068,2]
[424161666,1780619449000,-500.0,0.00015068,2]
[424161667,1780619449000,-500.0,0.00015068,2]
[424161668,1780619449000,-500.0,0.00015068,2]
[424161675,1780619449000,-500.0,0.00015068,2]
[424161665,1780619449000,-536.67,0.00015068,2]
[424161644,1780619449000,-185.65638951,0.00015068,2]
[424161656,1780619449000,-500.0,0.00015068,2]
[424161642,1780619449000,-500.0,0.00015068,2]
[424161611,1780619449000,-341.59598305,0.00015068,2]
[424161643,1780619449000,-500.0,0.00015068,2]
[424161671,1780619449000,-1079.98,0.00015068,2]
[424161612,1780619449000,-500.0,0.00015068,2]
[424161614,1780619449000,-500.0,0.00015068,2]
[424161625,1780619449000,-421.26931722,0.00015068,2]
[424161613,1780619449000,-500.0,0.00015068,2]
[424161621,1780619449000,-500.0,0.00015068,2]
[424161618,1780619449000,-500.0,0.00015068,2]
[424161616,1780619449000,-500.0,0.00015068,2]
[424161623,1780619449000,-642.16,0.00015068,2]
[424161615,1780619449000,-500.0,0.00015068,2]
[424161617,1780619449000,-500.0,0.00015068,2]
[424161622,1780619449000,-500.0,0.00015068,2]
[424161619,1780619449000,-1003.63,0.00015068,2]
[424161620,1780619449000,-500.0,0.00015068,2]
[424161640,1780619449000,-500.0,0.00015068,2]
[424161624,1780619449000,-500.0,0.00015068,2]
[424161628,1780619449000,-500.0,0.00015068,2]
[424161627,1780619449000,-503.2,0.00015068,2]
[424161630,1780619449000,-500.0,0.00015068,2]
[424161629,1780619449000,-500.0,0.00015068,2]
[424161631,1780619449000,-500.0,0.00015068,2]
[424161632,1780619449000,-644.03,0.00015068,2]
[424161635,1780619449000,-500.0,0.00015068,2]
[424161636,1780619449000,-500.0,0.00015068,2]
[424161637,1780619449000,-500.0,0.00015068,2]
[424161633,1780619449000,-500.0,0.00015068,2]
[424161638,1780619449000,-500.0,0.00015068,2]
[424161634,1780619449000,-500.0,0.00015068,2]
[424161639,1780619449000,-418.96239356,0.00015068,2]
[424161641,1780619449000,-500.0,0.00015068,2]
[424161626,1780619449000,-500.0,0.00015068,2]
[424161663,1780619449000,-542.42,0.00015068,2]
[424161678,1780619449000,-500.0,0.00015068,2]
[424161687,1780619449000,-344.4,0.00015342,2]
[424161713,1780619449000,-500.0,0.00015342,2]
[424161708,1780619449000,-500.0,0.00015342,2]
[424161710,1780619449000,-338.04,0.00015342,2]
[424161712,1780619449000,-500.0,0.00015342,2]
[424161718,1780619449000,-500.0,0.00015342,2]
[424161719,1780619449000,-500.0,0.00015342,2]
[424161720,1780619449000,-500.0,0.00015342,2]
[424161716,1780619449000,-2330.89,0.00015342,2]
[424161717,1780619449000,-500.0,0.00015342,2]
[424161727,1780619449000,-500.0,0.00015342,2]
[424161724,1780619449000,-458.12941138,0.00015342,2]
[424161722,1780619449000,-503.1,0.00015342,2]
[424161728,1780619449000,-500.0,0.00015342,2]
[424161723,1780619449000,-296.22314838,0.00015342,2]
[424161729,1780619449000,-500.0,0.00015342,2]
[424161726,1780619449000,-500.0,0.00015342,2]
[424161721,1780619449000,-500.0,0.00015342,2]
[424161725,1780619449000,-500.0,0.00015342,2]
[424161731,1780619449000,-536.67,0.00015342,2]
[424161737,1780619449000,-500.0,0.00015342,2]
[424161740,1780619449000,-500.0,0.00015342,2]
[424161730,1780619449000,-542.42,0.00015342,2]
[424161673,1780619449000,-555.85,0.00015068,2]
[424161734,1780619449000,-500.0,0.00015342,2]
[424161736,1780619449000,-1079.98,0.00015342,2]
[424161733,1780619449000,-500.0,0.00015342,2]
[424161732,1780619449000,-500.0,0.00015342,2]
[424161738,1780619449000,-555.85,0.00015342,2]
[424161735,1780619449000,-771.92,0.00015342,2]
[424161711,1780619449000,-500.0,0.00015342,2]
[424161709,1780619449000,-500.0,0.00015342,2]
[424161739,1780619449000,-500.0,0.00015342,2]
[424161706,1780619449000,-500.0,0.00015342,2]
[424161707,1780619449000,-500.0,0.00015342,2]
[424161677,1780619449000,-500.0,0.00015068,2]
[424161682,1780619449000,-500.0,0.00015068,2]
[424161676,1780619449000,-500.0,0.00015068,2]
[424161679,1780619449000,-562.5,0.00015068,2]
[424161684,1780619449000,-500.0,0.00015068,2]
[424161683,1780619449000,-247.5202089,0.00015068,2]
[424161689,1780619449000,-500.0,0.00015342,2]
[424161680,1780619449000,-500.0,0.00015068,2]
[424161681,1780619449000,-500.0,0.00015068,2]
[424161686,1780619449000,-500.0,0.00015342,2]
[424161685,1780619449000,-1723.54665836,0.00015164,2]
[424161690,1780619449000,-165.84,0.00015342,2]
[424161692,1780619449000,-500.0,0.00015342,2]
[424161694,1780619449000,-1003.63,0.00015342,2]
[424161688,1780619449000,-500.0,0.00015342,2]
[424161695,1780619449000,-500.0,0.00015342,2]
[424161693,1780619449000,-500.0,0.00015342,2]
[424161705,1780619449000,-500.0,0.00015342,2]
[424161714,1780619449000,-12041.34,0.00015342,2]
[424161703,1780619449000,-644.03,0.00015342,2]
[424161704,1780619449000,-500.0,0.00015342,2]
[424161701,1780619449000,-500.0,0.00015342,2]
[424161715,1780619449000,-830.48,0.00015342,2]
[424161698,1780619449000,-500.0,0.00015342,2]
[424161700,1780619449000,-579.55,0.00015342,2]
[424161702,1780619449000,-500.0,0.00015342,2]
[424161691,1780619449000,-430.78264477,0.00015342,2]
[424161697,1780619449000,-500.0,0.00015342,2]
[424161699,1780619449000,-500.0,0.00015342,2]
[424161696,1780619449000,-381.04912743,0.00015342,2]
[424161779,1780619450000,-500.0,0.00015616,2]
[424161775,1780619450000,-500.0,0.00015616,2]
[424161773,1780619450000,-500.0,0.00015616,2]
[424161772,1780619450000,-266.2,0.00015616,2]
[424161770,1780619450000,-500.0,0.00015616,2]
[424161774,1780619450000,-500.0,0.00015616,2]
[424161769,1780619450000,-500.0,0.00015616,2]
[424161777,1780619450000,-542.42,0.00015616,2]
[424161767,1780619450000,-237.11352367,0.00015616,2]
[424161771,1780619450000,-503.1,0.00015616,2]
[424161789,1780619450000,-500.0,0.00015616,2]
[424161784,1780619450000,-500.0,0.00015616,2]
[424161781,1780619450000,-500.0,0.00015616,2]
[424161780,1780619450000,-500.0,0.00015616,2]
[424161778,1780619450000,-536.67,0.00015616,2]
[424161783,1780619450000,-1079.98,0.00015616,2]
[424161791,1780619450000,-500.0,0.00015616,2]
[424161788,1780619450000,-500.0,0.00015616,2]
[424161785,1780619450000,-555.85,0.00015616,2]
[424161782,1780619450000,-771.92,0.00015616,2]
[424161787,1780619450000,-500.0,0.00015616,2]
[424161768,1780619450000,-500.0,0.00015616,2]
[424161790,1780619450000,-562.5,0.00015616,2]
[424161776,1780619450000,-500.0,0.00015616,2]
[424161750,1780619450000,-158.65,0.00015552,2]
[424161765,1780619450000,-830.48,0.00015616,2]
[424161741,1780619450000,-500.0,0.00015342,2]
[424161742,1780619450000,-500.0,0.00015342,2]
[424161743,1780619450000,-562.5,0.00015342,2]
[424161745,1780619450000,-500.0,0.00015342,2]
[424161744,1780619450000,-500.0,0.00015342,2]
[424161746,1780619450000,-500.0,0.00015342,2]
[424161749,1780619450000,-157.86,0.00015384,2]
[424161747,1780619450000,-500.0,0.00015342,2]
[424161748,1780619450000,-471.30986762,0.00015344,2]
[424161753,1780619450000,-500.0,0.00015616,2]
[424161752,1780619450000,-500.0,0.00015616,2]
[424161751,1780619450000,-500.0,0.00015616,2]
[424161754,1780619450000,-500.0,0.00015616,2]
[424161757,1780619450000,-500.0,0.00015616,2]
[424161764,1780619450000,-12041.34,0.00015616,2]
[424161755,1780619450000,-1003.63,0.00015616,2]
[424161756,1780619450000,-500.0,0.00015616,2]
[424161758,1780619450000,-500.0,0.00015616,2]
[424161760,1780619450000,-500.0,0.00015616,2]
[424161759,1780619450000,-644.03,0.00015616,2]
[424161763,1780619450000,-500.0,0.00015616,2]
[424161761,1780619450000,-500.0,0.00015616,2]
[424161762,1780619450000,-500.0,0.00015616,2]
[424161766,1780619450000,-2330.89,0.00015616,2]
[424161792,1780619450000,-156.61595394,0.00015616,2]
[424161786,1780619450000,-500.0,0.00015616,2]
[424161793,1780619450000,-307.67,0.0001589,2]
[424161821,1780619450000,-771.92,0.0001589,2]
[424161823,1780619450000,-500.0,0.0001589,2]
[424161824,1780619450000,-555.85,0.0001589,2]
[424161825,1780619450000,-500.0,0.0001589,2]
[424161831,1780619450000,-160.22,0.00015895,2]
[424161826,1780619450000,-389.48,0.0001589,2]
[424161830,1780619450000,-500.0,0.0001589,2]
[424161829,1780619450000,-562.5,0.0001589,2]
[424161828,1780619450000,-500.0,0.0001589,2]
[424161827,1780619450000,-500.0,0.0001589,2]
[424161832,1780619450000,-162.51,0.00016091,2]
[424161833,1780619450000,-162.380719,0.00016118,2]
[424161837,1780619450000,-500.0,0.00016164,2]
[424161836,1780619450000,-1003.63,0.00016164,2]
[424161835,1780619450000,-500.0,0.00016164,2]
[424161838,1780619450000,-500.0,0.00016164,2]
[424161839,1780619450000,-500.0,0.00016164,2]
[424161841,1780619450000,-500.0,0.00016164,2]
[424161840,1780619450000,-644.03,0.00016164,2]
[424161842,1780619450000,-500.0,0.00016164,2]
[424161844,1780619450000,-830.48,0.00016164,2]
[424161843,1780619450000,-12041.34,0.00016164,2]
[424161796,1780619450000,-500.0,0.0001589,2]
[424161822,1780619450000,-1079.98,0.0001589,2]
[424161818,1780619450000,-500.0,0.0001589,2]
[424161834,1780619450000,-500.0,0.00016118,2]
[424161819,1780619450000,-500.0,0.0001589,2]
[424161820,1780619450000,-500.0,0.0001589,2]
[424161799,1780619450000,-500.0,0.0001589,2]
[424161803,1780619450000,-500.0,0.0001589,2]
[424161795,1780619450000,-593.76,0.0001589,2]
[424161804,1780619450000,-500.0,0.0001589,2]
[424161797,1780619450000,-1003.63,0.0001589,2]
[424161798,1780619450000,-500.0,0.0001589,2]
[424161794,1780619450000,-215.21874606,0.0001589,2]
[424161800,1780619450000,-500.0,0.0001589,2]
[424161802,1780619450000,-500.0,0.0001589,2]
[424161817,1780619450000,-536.67,0.0001589,2]
[424161816,1780619450000,-542.42,0.0001589,2]
[424161807,1780619450000,-2330.89,0.0001589,2]
[424161806,1780619450000,-830.48,0.0001589,2]
[424161805,1780619450000,-12041.34,0.0001589,2]
[424161809,1780619450000,-500.0,0.0001589,2]
[424161810,1780619450000,-500.0,0.0001589,2]
[424161811,1780619450000,-503.1,0.0001589,2]
[424161808,1780619450000,-500.0,0.0001589,2]
[424161812,1780619450000,-500.0,0.0001589,2]
[424161813,1780619450000,-500.0,0.0001589,2]
[424161815,1780619450000,-500.0,0.0001589,2]
[424161801,1780619450000,-644.03,0.0001589,2]
[424161814,1780619450000,-500.0,0.0001589,2]
[424161886,1780619451000,-460.98237694,0.00016438,2]
[424161885,1780619451000,-500.0,0.00016438,2]
[424161876,1780619451000,-500.0,0.00016438,2]
[424161880,1780619451000,-2330.89,0.00016438,2]
[424161887,1780619451000,-542.42,0.00016438,2]
[424161884,1780619451000,-500.0,0.00016438,2]
[424161875,1780619451000,-644.03,0.00016438,2]
[424161879,1780619451000,-830.48,0.00016438,2]
[424161881,1780619451000,-500.0,0.00016438,2]
[424161883,1780619451000,-503.1,0.00016438,2]
[424161888,1780619451000,-536.67,0.00016438,2]
[424161882,1780619451000,-500.0,0.00016438,2]
[424161889,1780619451000,-500.0,0.00016438,2]
[424161902,1780619451000,-533.000819,0.00016438,2]
[424161890,1780619451000,-500.0,0.00016438,2]
[424161893,1780619451000,-1079.98,0.00016438,2]
[424161903,1780619451000,-533.000819,0.00016438,2]
[424161894,1780619451000,-500.0,0.00016438,2]
[424161892,1780619451000,-771.92,0.00016438,2]
[424161895,1780619451000,-555.85,0.00016438,2]
[424161904,1780619451000,-533.000819,0.00016438,2]
[424161896,1780619451000,-500.0,0.00016438,2]
[424161905,1780619451000,-533.000819,0.00016438,2]
[424161899,1780619451000,-500.0,0.00016438,2]
[424161897,1780619451000,-525.58,0.00016438,2]
[424161901,1780619451000,-533.000819,0.00016438,2]
[424161873,1780619451000,-500.0,0.00016438,2]
[424161891,1780619451000,-500.0,0.00016438,2]
[424161869,1780619451000,-200.0,0.00016438,2]
[424161847,1780619451000,-594.68,0.00016164,2]
[424161874,1780619451000,-500.0,0.00016438,2]
[424161845,1780619451000,-2330.89,0.00016164,2]
[424161846,1780619451000,-500.0,0.00016164,2]
[424161848,1780619451000,-500.0,0.00016164,2]
[424161849,1780619451000,-503.1,0.00016164,2]
[424161898,1780619451000,-562.5,0.00016438,2]
[424161851,1780619451000,-431.08,0.00016164,2]
[424161850,1780619451000,-500.0,0.00016164,2]
[424161852,1780619451000,-500.0,0.00016164,2]
[424161853,1780619451000,-500.0,0.00016164,2]
[424161855,1780619451000,-536.67,0.00016164,2]
[424161857,1780619451000,-500.0,0.00016164,2]
[424161865,1780619451000,-609.92,0.00016164,2]
[424161861,1780619451000,-500.0,0.00016164,2]
[424161868,1780619451000,-178.35013263,0.0001618,2]
[424161858,1780619451000,-500.0,0.00016164,2]
[424161860,1780619451000,-1079.98,0.00016164,2]
[424161856,1780619451000,-500.0,0.00016164,2]
[424161863,1780619451000,-500.0,0.00016164,2]
[424161859,1780619451000,-771.92,0.00016164,2]
[424161864,1780619451000,-500.0,0.00016164,2]
[424161862,1780619451000,-555.85,0.00016164,2]
[424161867,1780619451000,-500.0,0.00016164,2]
[424161877,1780619451000,-500.0,0.00016438,2]
[424161878,1780619451000,-12041.34,0.00016438,2]
[424161866,1780619451000,-562.5,0.00016164,2]
[424161871,1780619451000,-1003.63,0.00016438,2]
[424161872,1780619451000,-500.0,0.00016438,2]
[424161870,1780619451000,-500.0,0.00016438,2]
[424161854,1780619451000,-542.42,0.00016164,2]
[424161900,1780619451000,-151.0,0.00016438,2]
[424161906,1780619451000,-533.000819,0.00016438,2]
[424161908,1780619451000,-533.000819,0.00016438,2]
[424161942,1780619451000,-237.04,0.00016712,2]
[424161945,1780619451000,-500.0,0.00016712,2]
[424161943,1780619451000,-771.92,0.00016712,2]
[424161938,1780619451000,-542.42,0.00016712,2]
[424161936,1780619451000,-500.0,0.00016712,2]
[424161939,1780619451000,-536.67,0.00016712,2]
[424161947,1780619451000,-424.52,0.00016712,2]
[424161956,1780619451000,-500.0,0.00016986,2]
[424161959,1780619451000,-830.48,0.00016986,2]
[424161957,1780619451000,-644.03,0.00016986,2]
[424161958,1780619451000,-12041.34,0.00016986,2]
[424161946,1780619451000,-555.85,0.00016712,2]
[424161949,1780619451000,-366.2,0.00016712,2]
[424161954,1780619451000,-500.0,0.00016986,2]
[424161948,1780619451000,-562.5,0.00016712,2]
[424161953,1780619451000,-1003.63,0.00016986,2]
[424161952,1780619451000,-619.85984655,0.00016986,2]
[424161950,1780619451000,-457.165364,0.00016725,2]
[424161955,1780619451000,-500.0,0.00016986,2]
[424161951,1780619451000,-356.70026525,0.00016967,2]
[424161960,1780619451000,-2330.89,0.00016986,2]
[424161964,1780619451000,-500.0,0.00016986,2]
[424161963,1780619451000,-503.1,0.00016986,2]
[424161961,1780619451000,-500.0,0.00016986,2]
[424161967,1780619451000,-536.67,0.00016986,2]
[424161965,1780619451000,-500.0,0.00016986,2]
[424161966,1780619451000,-542.42,0.00016986,2]
[424161937,1780619451000,-500.0,0.00016712,2]
[424161944,1780619451000,-1079.98,0.00016712,2]
[424161962,1780619451000,-500.0,0.00016986,2]
[424161934,1780619451000,-500.0,0.00016712,2]
[424161935,1780619451000,-503.1,0.00016712,2]
[424161910,1780619451000,-533.000819,0.00016438,2]